bitfinex/quotes_SOLUSD_20220210
["timestamp","ask_amount","ask_price","bid_price","bid_amount"]
[1644467565755,27.13885739,111.89,111.83,25.8741]
[1644467565958,0.03688021,111.88,111.83,25.8741]
[1644467566158,27.10197718,111.89,111.83,25.8741]
[1644467566159,27.13885739,111.89,111.83,25.8741]
[1644467566357,0.03688021,111.88,111.83,25.8741]
[1644467566558,27.13885739,111.89,111.83,25.8741]
[1644467566758,44.80298018,111.88,111.83,67.53346621]
[1644467566957,44.76609997,111.88,111.83,67.53346621]
[1644467567157,44.80298018,111.88,111.83,67.53346621]
[1644467567357,0.03688021,111.88,111.83,69.35797645]
[1644467567561,2.57785739,111.89,111.83,69.60797645]
[1644467567759,0.03688021,111.88,111.83,69.60797645]
[1644467567958,2.54097718,111.92,111.84,186.542]
[1644467567959,0.03688021,111.89,111.84,186.542]
[1644467568164,0.03688021,111.88,111.85,25.8654]
[1644467568360,0.03688021,111.91,111.87,35.81678597]
[1644467568565,42.64443002,111.93,111.88,12.46]
[1644467568764,0.03688021,111.92,111.88,63.391]
[1644467568964,0.03688021,111.94,111.89,24.732]
[1644467569163,0.03688021,111.96,111.9,12.46]
[1644467569363,2.54097718,112.01,111.9,18.46]
[1644467569562,2.54097718,112.03,111.91,155.81]
[1644467569763,42.88939574,112.03,111.94,44.6525]
[1644467569963,42.88939574,112.03,111.95,49.40452878]
[1644467570164,42.88939574,112.03,111.95,55.40452878]
[1644467570463,42.88939574,112.03,111.95,33.68138469]
[1644467570864,42.88939574,112.03,111.95,12.46]
[1644467571180,2.25307403,112.02,111.95,12.46]
[1644467571367,47.73415264,112.01,111.95,12.46]
[1644467572470,47.73415264,112.01,111.96,42.54701241]
[1644467572869,47.73415264,112.01,111.97,12.46]
[1644467573170,47.73415264,112.01,111.93,1.82558469]
[1644467573365,47.73415264,112.01,111.92,12.46]
[1644467573969,47.73415264,112.01,111.92,52.7554254]
[1644467574167,61.13715264,112.01,111.92,12.46]
[1644467574567,63.39022667,112.01,111.92,12.46]
[1644467574869,61.13715264,112.01,111.92,12.46]
[1644467575267,63.39022667,112.01,111.91,13.4031]
[1644467575770,63.39022667,112.01,111.9,49.83751873]
[1644467576166,61.13715264,112.01,111.9,49.83751873]
[1644467576968,61.13715264,112.01,111.9,51.66310342]
[1644467577769,61.13715264,112.01,111.9,65.06740342]
[1644467580379,61.13715264,112.01,111.9,27.68988469]
[1644467580581,75.85022667,112.01,111.88,13.4065]
[1644467580780,75.85022667,112.01,111.86,49.71728469]
[1644467580982,13.4089,111.96,111.86,47.8917]
[1644467581379,13.4089,111.96,111.86,49.71728469]
[1644467581579,42.85658981,111.95,111.87,46.87474625]
[1644467581979,42.85658981,111.95,111.87,60.28304625]
[1644467582182,42.85658981,111.95,111.87,62.11429983]
[1644467582580,42.85658981,111.95,111.88,12.46]
[1644467582795,42.85658981,111.95,111.89,34.36712556]
[1644467582980,42.85658981,111.95,111.89,36.19837914]
[1644467583181,42.85658981,111.95,111.9,1.83125358]
[1644467583380,42.85658981,111.95,111.91,48.38319545]
[1644467584582,13.4066,111.98,111.91,48.38319545]
[1644467584783,22.6195,111.99,111.92,1.83125358]
[1644467585189,24.6353,112.03,111.93,12.46]
[1644467585583,39.93523333,112.02,111.94,43.01401018]
[1644467586409,13.4018,112.02,111.94,56.41391018]
[1644467586582,24.6353,112.03,111.94,69.12391018]
[1644467586782,23.2048,112.04,111.95,7.83125358]
[1644467586983,23.2048,112.04,111.96,12.46]
[1644467587183,2.25307403,112.03,111.96,12.46]
[1644467587384,49.76456105,112.03,111.96,12.46]
[1644467587582,49.76456105,112.03,111.96,54.12442742]
[1644467587783,49.76456105,112.03,111.96,12.46]
[1644467588787,13.4014,112.02,111.94,59.9962377]
[1644467588984,34.78848516,112.01,111.94,59.9962377]
[1644467590285,34.78848516,112.01,111.92,60.5161]
[1644467590490,48.19048516,112.01,111.92,61.4581]
[1644467590688,50.44355919,112.01,111.92,13.402]
[1644467590886,50.44355919,112.01,111.89,57.1363]
[1644467591088,50.44355919,112.01,111.9,6.0]
[1644467591295,50.44355919,112.01,111.91,46.22688931]
[1644467591988,48.19048516,112.01,111.91,46.22688931]
[1644467592392,48.19048516,112.01,111.89,57.1363]
[1644467592590,13.4072,111.97,111.88,23.3058]
[1644467592991,20.5142,111.97,111.87,25.8681]
[1644467593393,37.47761821,111.96,111.88,38.14675989]
[1644467594214,50.88511821,111.96,111.88,51.55395989]
[1644467594413,37.47761821,111.96,111.88,51.55395989]
[1644467594612,37.47761821,111.96,111.88,53.38626926]
[1644467596215,37.47761821,111.96,111.88,53.63626926]
[1644467596614,37.47761821,111.96,111.88,51.80395989]
[1644467596811,37.47761821,111.96,111.88,53.63626926]
[1644467597014,37.47761821,111.96,111.88,53.38626926]
[1644467597212,37.47761821,111.96,111.9,42.11453282]
[1644467597913,50.88481821,111.96,111.9,42.11453282]
[1644467598516,50.88481821,111.96,111.89,6.0]
[1644467599217,50.88481821,111.96,111.88,6.0]
[1644467599415,50.88481821,111.96,111.89,46.81267718]
[1644467599816,50.88481821,111.96,111.9,6.0]
[1644467600016,50.88481821,111.96,111.91,46.75272441]
[1644467601317,50.88481821,111.96,111.9,6.0]
[1644467602420,50.88481821,111.96,111.9,40.6705263]
[1644467606125,37.47761821,111.96,111.9,54.0761263]
[1644467606626,37.47761821,111.96,111.9,6.0]
[1644467607728,50.88471821,111.96,111.9,6.0]
[1644467607928,50.88471821,111.96,111.91,45.76037483]
[1644467609433,50.88471821,111.96,111.89,37.7462]
[1644467610230,2.54097718,111.97,111.89,37.7462]
[1644467610431,2.54097718,111.97,111.91,13.4039]
[1644467610630,2.54097718,111.98,111.91,13.4039]
[1644467610831,51.37587718,111.99,111.91,13.4039]
[1644467611131,92.68548021,111.99,111.92,45.27584381]
[1644467611332,106.08858021,111.99,111.92,45.27584381]
[1644467611830,106.08858021,111.99,111.93,13.4025]
[1644467612034,103.54760303,111.99,111.94,47.14332507]
[1644467612530,62.238,111.99,111.94,47.14332507]
[1644467614133,2.54097718,112.0,111.94,60.54472507]
[1644467614331,2.54097718,112.01,111.94,62.38938184]
[1644467614534,26.90137718,112.02,111.94,62.63938184]
[1644467614734,26.90137718,112.02,111.94,60.54472507]
[1644467614933,38.75133311,112.01,111.94,60.54472507]
[1644467616034,38.75133311,112.01,111.94,62.38938184]
[1644467616434,1.27142933,111.99,111.94,60.54472507]
[1644467616635,1.27142933,111.99,111.94,62.38938184]
[1644467618236,1.27142933,111.99,111.94,60.54472507]
[1644467618941,41.15213541,111.99,111.94,60.54472507]
[1644467619138,1.27142933,111.98,111.94,13.4014]
[1644467619338,1.27142933,111.98,111.93,38.2681]
[1644467619538,1.27142933,111.97,111.93,38.2681]
[1644467620042,1.27142933,111.97,111.93,79.48547061]
[1644467620242,1.27142933,111.96,111.93,79.48547061]
[1644467620442,6.06,111.95,111.93,79.48547061]
[1644467620643,1.27142933,111.96,111.93,54.62027061]
[1644467620842,1.27142933,111.97,111.93,54.62027061]
[1644467621344,1.27142933,111.96,111.93,54.62027061]
[1644467621544,6.06,111.95,111.93,54.62027061]
[1644467621744,6.06,111.95,111.91,24.1941]
[1644467621944,6.06,111.95,111.92,13.4039]
[1644467622744,3.03,111.95,111.92,13.4039]
[1644467623246,3.03,111.95,111.93,35.41802432]
[1644467623647,1.27142933,111.96,111.93,35.41802432]
[1644467624849,1.27142933,111.96,111.93,48.82062432]
[1644467625046,1.27142933,111.97,111.93,48.82062432]
[1644467625947,1.27142933,111.96,111.93,48.82062432]
[1644467626348,1.27142933,111.97,111.93,48.82062432]
[1644467626548,36.50783004,111.97,111.93,48.82062432]
[1644467626747,1.27142933,111.97,111.93,48.82062432]
[1644467627249,1.27142933,111.97,111.93,49.07062432]
[1644467627456,1.27142933,111.98,111.95,13.3996]
[1644467627670,1.27142933,111.98,111.96,41.00873616]
[1644467627867,1.27142933,111.99,111.96,41.00873616]
[1644467628068,1.27142933,111.98,111.96,41.00873616]
[1644467628269,1.27142933,111.99,111.96,41.00873616]
[1644467628671,1.27142933,111.99,111.94,23.7035]
[1644467629672,1.27142933,111.99,111.96,13.3988]
[1644467629876,47.15458034,111.98,111.94,0.0035]
[1644467630110,51.45600967,111.98,111.86,75.9553]
[1644467630277,1.27142933,111.97,111.85,24.6031]
[1644467630576,1.27142933,111.95,111.85,24.6031]
[1644467630773,1.27142933,111.95,111.82,1.25154019]
[1644467630774,1.27142933,111.94,111.81,52.00274565]
[1644467630974,2.25307403,111.96,111.81,4.66445351]
[1644467630975,13.73142933,111.93,111.81,4.66445351]
[1644467631175,1.27142933,111.91,111.78,1.25154019]
[1644467631491,13.73142933,111.9,111.75,21.7969787]
[1644467631689,1.27142933,111.88,111.75,9.3369787]
[1644467631877,0.38866009,111.87,111.75,9.3369787]
[1644467632078,0.38866009,111.87,111.74,75.3382]
[1644467632079,0.38866009,111.86,111.74,75.3382]
[1644467632276,0.38866009,111.85,111.71,10.58986184]
[1644467632477,0.38866009,111.85,111.71,21.79832165]
[1644467632478,12.84866009,111.85,111.71,21.79832165]
[1644467632681,0.38866009,111.84,111.71,12.46]
[1644467632875,12.46,111.83,111.7,11.57182891]
[1644467633081,46.7816,111.82,111.71,42.33566858]
[1644467633278,13.4267,111.81,111.68,91.5073]
[1644467633784,13.4267,111.81,111.68,79.0473]
[1644467633976,12.46,111.8,111.68,79.0473]
[1644467634478,13.4315,111.77,111.68,0.024]
[1644467634677,25.8915,111.77,111.68,0.024]
[1644467634876,25.8915,111.77,111.65,0.024]
[1644467635077,25.8915,111.77,111.62,76.6735]
[1644467635078,25.8915,111.77,111.64,0.024]
[1644467635281,23.3244,111.79,111.65,12.46]
[1644467635485,46.3016,111.82,111.66,0.024]
[1644467635681,46.3016,111.82,111.67,52.00702368]
[1644467635880,22.5407,111.82,111.68,0.024]
[1644467636080,22.5407,111.82,111.69,59.91055337]
[1644467636278,22.5407,111.82,111.7,6.0]
[1644467636481,22.5407,111.82,111.71,47.0669934]
[1644467636880,22.5407,111.82,111.71,47.3169934]
[1644467637180,36.4756,111.84,111.72,6.0]
[1644467637381,36.4756,111.84,111.73,47.60683701]
[1644467637581,36.4756,111.84,111.74,12.46]
[1644467637784,36.4756,111.84,111.75,39.29298638]
[1644467638080,36.4756,111.84,111.75,51.75298638]
[1644467638583,36.4756,111.84,111.72,12.46]
[1644467638783,2.23560176,111.83,111.72,6.0]
[1644467638983,13.4279,111.8,111.72,6.0]
[1644467639182,13.4279,111.8,111.71,6.0]
[1644467639581,13.4279,111.8,111.71,47.5321861]
[1644467639781,13.4279,111.8,111.72,6.0]
[1644467639981,13.4279,111.8,111.73,36.07524228]
[1644467640583,13.4279,111.8,111.72,6.0]
[1644467640784,13.4279,111.8,111.7,6.024]
[1644467641585,13.4279,111.8,111.7,52.4375595]
[1644467641786,25.8879,111.8,111.7,52.4375595]
[1644467642288,48.6554,111.82,111.7,52.4375595]
[1644467642289,61.1154,111.82,111.7,52.4375595]
[1644467642486,74.5416,111.82,111.7,65.1475595]
[1644467642685,74.5416,111.82,111.7,64.8975595]
[1644467644088,74.5416,111.82,111.7,65.1475595]
[1644467644389,62.0816,111.82,111.7,65.1475595]
[1644467646689,62.0816,111.82,111.71,0.024]
[1644467646888,62.0816,111.82,111.72,12.46]
[1644467647290,62.0816,111.82,111.73,35.34538273]
[1644467652896,62.0816,111.82,111.71,0.024]
[1644467653294,12.46,111.81,111.71,0.024]
[1644467653494,13.4293,111.79,111.71,0.024]
[1644467653896,13.4293,111.79,111.71,44.72001845]
[1644467654294,13.4293,111.79,111.72,6.0]
[1644467654996,13.4293,111.79,111.71,0.024]
[1644467655198,13.4323,111.76,111.69,0.024]
[1644467655397,13.4323,111.76,111.67,0.024]
[1644467655797,13.4323,111.76,111.67,48.29381289]
[1644467655996,13.4323,111.76,111.68,0.024]
[1644467662501,13.4323,111.76,111.67,60.25381289]
[1644467662702,13.4323,111.76,111.68,0.024]
[1644467662906,15.66790176,111.76,111.67,0.024]
[1644467663306,23.2954,111.75,111.65,0.024]
[1644467663502,13.4354,111.73,111.65,0.024]
[1644467663704,13.4354,111.73,111.64,39.50302811]
[1644467663901,13.4354,111.73,111.65,0.024]
[1644467667606,13.4354,111.73,111.64,39.47902811]
[1644467667809,13.4354,111.73,111.65,0.024]
[1644467668211,13.4354,111.73,111.65,6.024]
[1644467668409,13.4354,111.73,111.66,34.96350864]
[1644467669208,13.4354,111.73,111.65,0.024]
[1644467669408,13.4354,111.73,111.64,0.024]
[1644467670411,13.4354,111.73,111.64,40.87084309]
[1644467670611,13.4354,111.73,111.65,0.024]
[1644467673417,15.67100176,111.73,111.64,0.024]
[1644467673615,35.4311,111.72,111.62,0.024]
[1644467673814,13.4399,111.69,111.61,6.024]
[1644467674015,13.4399,111.69,111.62,0.024]
[1644467674214,13.4399,111.69,111.61,6.024]
[1644467674414,13.4399,111.69,111.61,53.32217555]
[1644467675015,13.4399,111.69,111.61,47.32217555]
[1644467676916,13.4399,111.69,111.61,0.024]
[1644467677816,37.6551,111.69,111.61,47.42006913]
[1644467679118,24.2152,111.69,111.62,12.46]
[1644467679318,24.2152,111.69,111.63,46.32203892]
[1644467680120,37.6542,111.69,111.63,46.32203892]
[1644467684244,24.2152,111.69,111.63,46.32203892]
[1644467684441,70.39530176,111.74,111.63,46.32203892]
[1644467684643,95.29590176,111.74,111.64,12.484]
[1644467684842,95.29590176,111.74,111.65,36.78470921]
[1644467685844,13.4362,111.72,111.65,36.78470921]
[1644467691148,13.4362,111.72,111.62,24.642]
[1644467691349,13.4362,111.72,111.56,2.51465812]
[1644467691350,13.4395,111.69,111.56,2.51465812]
[1644467691552,2.23560176,111.72,111.61,0.024]
[1644467691553,47.7818,111.68,111.61,0.024]
[1644467691753,50.01740176,111.68,111.57,0.024]
[1644467691953,14.69560176,111.67,111.57,0.024]
[1644467692149,14.69560176,111.67,111.55,0.024]
[1644467692349,2.23560176,111.66,111.55,0.024]
[1644467692548,2.23560176,111.66,111.53,0.024]
[1644467692549,36.3253,111.65,111.53,0.024]
[1644467692750,24.7602,111.64,111.5,102.4242]
[1644467692949,24.7602,111.64,111.5,24.222]
[1644467692950,12.46,111.63,111.5,24.222]
[1644467693150,23.8653,111.62,111.51,28.5539]
[1644467693350,23.8653,111.62,111.51,70.62249167]
[1644467693550,23.8653,111.62,111.52,14.22868964]
[1644467693850,23.8653,111.62,111.53,54.68125824]
[1644467694049,23.8653,111.62,111.53,68.90994788]
[1644467694252,37.317,111.62,111.53,68.90994788]
[1644467694850,37.317,111.62,111.53,54.68125824]
[1644467697556,13.4517,111.62,111.53,54.68125824]
[1644467697755,38.2064,111.64,111.53,54.68125824]
[1644467697954,24.7602,111.64,111.54,12.46]
[1644467698154,24.7602,111.64,111.55,40.35231975]
[1644467698353,24.3319,111.67,111.56,12.46]
[1644467698554,24.3319,111.67,111.57,41.45467577]
[1644467698754,13.4453,111.64,111.57,41.45467577]
[1644467699755,24.8961,111.68,111.57,41.45467577]
[1644467699954,49.8059,111.68,111.57,41.45467577]
[1644467700157,13.4443,111.66,111.57,41.45467577]
[1644467701556,37.9091,111.66,111.57,41.45467577]
[1644467708163,37.9091,111.66,111.55,24.3486]
[1644467708365,37.9091,111.66,111.54,36.5682]
[1644467708562,37.9091,111.66,111.54,36.8182]
[1644467708764,37.9091,111.66,111.55,0.024]
[1644467708962,50.3691,111.66,111.55,0.024]
[1644467709166,50.3691,111.66,111.55,42.70613519]
[1644467709365,50.3691,111.66,111.56,0.024]
[1644467709966,37.9091,111.66,111.57,12.46]
[1644467710188,38.3378,111.68,111.58,48.55692671]
[1644467710365,60.8517,111.68,111.59,0.024]
[1644467711769,47.41,111.68,111.59,12.484]
[1644467711980,12.46,111.72,111.6,35.27921968]
[1644467712170,62.24747718,111.75,111.62,38.85824227]
[1644467712370,47.2465,111.75,111.64,40.38532913]
[1644467712570,47.2465,111.75,111.66,39.97118871]
[1644467713372,60.6792,111.75,111.66,39.97118871]
[1644467714574,60.6792,111.75,111.65,0.024]
[1644467714772,13.4399,111.71,111.62,0.024]
[1644467714976,22.8488,111.7,111.62,0.024]
[1644467715178,22.8488,111.7,111.61,0.024]
[1644467715575,22.8488,111.7,111.61,42.38512915]
[1644467715778,22.8488,111.7,111.62,0.024]
[1644467716178,13.4405,111.69,111.62,0.024]
[1644467716375,13.4405,111.69,111.61,42.38512915]
[1644467726815,13.4405,111.69,111.61,42.63512915]
[1644467727110,22.8488,111.7,111.61,42.63512915]
[1644467727312,22.8488,111.7,111.63,38.2116776]
[1644467727814,22.8488,111.7,111.63,38.4616776]
[1644467728212,38.2329,111.71,111.63,38.4616776]
[1644467728912,38.2329,111.71,111.63,51.8974776]
[1644467732219,38.2329,111.71,111.64,6.0]
[1644467732415,38.2329,111.71,111.65,46.32712545]
[1644467732815,24.7956,111.71,111.65,46.32712545]
[1644467740428,24.7956,111.71,111.65,59.76102545]
[1644467740625,13.4351,111.72,111.65,59.76102545]
[1644467740626,13.4336,111.73,111.65,60.01102545]
[1644467741226,23.3545,111.74,111.65,60.01102545]
[1644467741429,23.3545,111.74,111.67,45.30333423]
[1644467741828,24.0557,111.77,111.69,34.29411812]
[1644467742230,24.0557,111.77,111.69,34.54411812]
[1644467742629,24.0557,111.77,111.69,34.29411812]
[1644467742830,37.4842,111.77,111.69,47.97381812]
[1644467744132,37.4842,111.77,111.69,47.72381812]
[1644467744733,37.4842,111.77,111.69,47.97381812]
[1644467745937,37.4842,111.77,111.69,47.72381812]
[1644467746634,37.4842,111.77,111.69,47.97381812]
[1644467748837,37.4842,111.77,111.69,47.72381812]
[1644467749238,37.4842,111.77,111.69,47.97381812]
[1644467749439,37.4842,111.77,111.69,47.72381812]
[1644467750043,37.4842,111.77,111.69,34.29411812]
[1644467750445,37.4842,111.77,111.67,12.46]
[1644467750648,13.4337,111.74,111.67,12.46]
[1644467750946,13.4337,111.74,111.66,22.9036]
[1644467751566,13.4337,111.74,111.67,46.95067218]
[1644467751970,14.70586181,111.74,111.67,46.95067218]
[1644467752269,14.70626181,111.73,111.67,46.95067218]
[1644467754077,14.70626181,111.73,111.66,22.9036]
[1644467754371,14.70626181,111.73,111.64,36.5316]
[1644467754572,1.27216181,111.72,111.64,36.5316]
[1644467754772,13.436,111.71,111.64,36.5316]
[1644467755072,13.436,111.71,111.65,39.08492209]
[1644467756575,14.70816181,111.71,111.65,39.08492209]
[1644467758473,13.4391,111.69,111.65,39.08492209]
[1644467762977,13.4391,111.69,111.62,13.4382]
[1644467763182,13.4391,111.69,111.61,24.9867]
[1644467763387,14.71126181,111.69,111.61,0.024]
[1644467763577,13.4425,111.66,111.61,0.024]
[1644467763778,13.4425,111.66,111.6,22.8619]
[1644467763977,13.4425,111.66,111.61,44.04348494]
[1644467765379,13.4425,111.66,111.59,12.484]
[1644467765580,13.4425,111.66,111.59,0.024]
[1644467765782,20.8565,111.66,111.58,0.024]
[1644467766378,20.8565,111.66,111.58,36.49360676]
[1644467766983,13.4425,111.66,111.58,36.49360676]
[1644467767284,13.4425,111.66,111.58,36.74360676]
[1644467768683,13.4425,111.66,111.58,50.18620676]
[1644467775589,13.4425,111.66,111.58,36.49360676]
[1644467776287,38.0888,111.66,111.58,36.49360676]
[1644467783297,38.0888,111.66,111.58,0.024]
[1644467783495,1.27216181,111.65,111.58,0.024]
[1644467783698,13.4489,111.62,111.55,0.024]
[1644467783894,44.8297,111.63,111.56,0.024]
[1644467783895,23.0166,111.61,111.56,0.024]
[1644467784095,23.0166,111.61,111.54,13.4722]
[1644467784394,23.0166,111.61,111.56,41.55637923]
[1644467784795,36.4643,111.61,111.56,41.55637923]
[1644467787004,36.4643,111.61,111.54,0.024]
[1644467787302,60.2651,111.61,111.51,6.024]
[1644467787501,61.53726181,111.61,111.51,6.024]
[1644467788101,61.53726181,111.61,111.52,34.78676506]
[1644467788302,61.53726181,111.61,111.53,0.024]
[1644467789100,16.843248,111.6,111.52,0.024]
[1644467789301,13.456,111.58,111.5,0.024]
[1644467789502,24.401,111.57,111.48,0.024]
[1644467789702,24.401,111.57,111.46,12.484]
[1644467790000,24.401,111.57,111.47,41.02407627]
[1644467790202,24.401,111.57,111.49,37.65124116]
[1644467790401,24.401,111.57,111.49,50.13524116]
[1644467790599,24.401,111.57,111.49,50.38524116]
[1644467790801,24.401,111.57,111.49,50.13524116]
[1644467791401,37.8535,111.57,111.49,63.58854116]
[1644467792211,37.8535,111.57,111.49,50.13524116]
[1644467793536,37.8535,111.57,111.49,63.83944116]
[1644467796538,13.4514,111.58,111.49,63.83944116]
[1644467796739,23.8008,111.61,111.51,42.69885729]
[1644467796937,23.8008,111.61,111.53,13.4487]
[1644467797138,23.8008,111.61,111.53,51.80510783]
[1644467797839,13.449,111.6,111.53,38.35640783]
[1644467800743,13.449,111.6,111.53,51.80620783]
[1644467800944,13.449,111.6,111.53,38.35640783]
[1644467803047,13.449,111.6,111.53,51.80610783]
[1644467805048,13.449,111.6,111.53,38.35640783]
[1644467807249,37.7342,111.6,111.53,38.35640783]
[1644467808050,37.7342,111.6,111.53,0.024]
[1644467808251,37.7342,111.6,111.52,0.024]
[1644467809152,37.7342,111.6,111.52,42.3571801]
[1644467810561,39.00636181,111.6,111.52,42.3571801]
[1644467811475,39.00636181,111.6,111.52,55.8081801]
[1644467812157,1.27216181,111.59,111.52,55.8081801]
[1644467812355,13.451,111.58,111.52,55.8081801]
[1644467814557,14.72316181,111.58,111.52,55.8081801]
[1644467814759,13.451,111.58,111.52,55.8081801]
[1644467815560,14.72316181,111.58,111.52,55.8081801]
[1644467819762,14.72316181,111.58,111.52,0.024]
[1644467819965,14.72316181,111.58,111.5,22.6164]
[1644467820161,14.72316181,111.58,111.51,0.024]
[1644467820365,1.27216181,111.57,111.5,0.024]
[1644467820566,1.27216181,111.57,111.48,0.024]
[1644467820567,13.4567,111.55,111.48,0.024]
[1644467820763,23.3458,111.54,111.5,0.024]
[1644467820964,23.3458,111.54,111.47,45.45178652]
[1644467821465,13.4579,111.53,111.47,45.45178652]
[1644467822164,13.4579,111.53,111.47,58.90918652]
[1644467826270,13.4579,111.53,111.47,45.45178652]
[1644467827988,13.4579,111.53,111.47,58.90948652]
[1644467828591,13.4579,111.53,111.47,6.024]
[1644467828990,13.4579,111.53,111.47,0.024]
[1644467829191,13.4579,111.53,111.46,6.0]
[1644467829392,13.4579,111.53,111.46,6.024]
[1644467829590,13.4579,111.53,111.46,54.84640607]
[1644467832903,13.4579,111.53,111.46,0.024]
[1644467833397,13.4631,111.5,111.44,0.024]
[1644467833598,36.0201,111.5,111.44,0.024]
[1644467833998,36.0201,111.5,111.44,46.25547509]
[1644467838804,36.0201,111.5,111.44,0.024]
[1644467839007,36.0201,111.5,111.42,0.024]
[1644467839203,36.0201,111.5,111.41,0.024]
[1644467839404,60.3392,111.5,111.41,0.024]
[1644467839603,60.3392,111.5,111.38,12.484]
[1644467839802,60.3392,111.5,111.39,43.58851674]
[1644467840001,60.3392,111.5,111.4,0.024]
[1644467840804,60.3392,111.5,111.4,6.024]
[1644467841001,62.57480176,111.5,111.4,6.024]
[1644467841205,63.84696357,111.5,111.4,6.024]
[1644467841404,76.30696357,111.5,111.4,6.024]
[1644467842209,13.4686,111.47,111.4,6.024]
[1644467842405,37.5007,111.47,111.4,6.024]
[1644467843606,37.5007,111.47,111.4,0.024]
[1644467843805,37.5007,111.47,111.39,43.58851674]
[1644467845109,37.5007,111.47,111.4,6.0]
[1644467845311,37.5007,111.47,111.4,6.024]
[1644467847209,37.5007,111.47,111.4,0.024]
[1644467847410,37.5007,111.47,111.39,6.024]
[1644467847812,37.5007,111.47,111.39,0.024]
[1644467849114,37.5007,111.47,111.39,6.024]
[1644467853624,38.77286181,111.47,111.39,6.024]
[1644467854019,38.77286181,111.47,111.39,0.024]
[1644467854220,52.04966181,111.47,111.38,6.024]
[1644467854420,52.04966181,111.47,111.39,0.024]
[1644467855322,66.74526357,111.47,111.39,0.024]
[1644467855522,66.74526357,111.47,111.38,0.024]
[1644467855722,66.74526357,111.47,111.36,0.024]
[1644467855723,1.27216181,111.46,111.36,0.024]
[1644467855926,13.4724,111.43,111.36,0.024]
[1644467856222,13.4724,111.43,111.36,40.31403458]
[1644467856623,37.0409,111.43,111.37,6.0]
[1644467857527,13.4724,111.43,111.37,6.0]
[1644467857726,13.4677,111.45,111.37,20.47868964]
[1644467857926,1.27216181,111.48,111.38,22.7705]
[1644467858126,24.00946181,111.49,111.39,12.484]
[1644467858324,24.00946181,111.49,111.4,35.33439742]
[1644467858530,24.00946181,111.49,111.4,71.56939742]
[1644467859628,1.27216181,111.49,111.41,1.76868964]
[1644467859828,1.27216181,111.5,111.43,13.4608]
[1644467860028,1.27216181,111.5,111.44,51.41841336]
[1644467860243,1.27216181,111.52,111.44,57.66841336]
[1644467860445,1.27216181,111.53,111.45,0.024]
[1644467860642,1.27216181,111.52,111.44,51.44241336]
[1644467860844,1.27216181,111.52,111.45,0.024]
[1644467861046,1.27216181,111.51,111.44,51.44241336]
[1644467861242,1.27216181,111.51,111.45,0.024]
[1644467861544,1.27216181,111.52,111.44,51.44241336]
[1644467861743,1.27216181,111.52,111.45,0.024]
[1644467861946,13.4601,111.51,111.44,51.44241336]
[1644467863748,13.4601,111.51,111.45,13.4601]
[1644467866648,13.4601,111.51,111.44,64.90441336]
[1644467873458,14.73226181,111.51,111.44,64.90441336]
[1644467874059,13.4601,111.51,111.44,64.90441336]
[1644467874458,14.73226181,111.51,111.44,64.90441336]
[1644467875461,13.4601,111.51,111.44,64.90441336]
[1644467875867,14.73226181,111.51,111.44,64.90441336]
[1644467876765,14.73226181,111.51,111.44,64.88389674]
[1644467877164,13.4601,111.51,111.44,64.88389674]
[1644467877566,14.73226181,111.51,111.44,64.88389674]
[1644467877965,1.27216181,111.52,111.44,64.88389674]
[1644467878166,1.27216181,111.52,111.47,13.4572]
[1644467878367,25.59086181,111.53,111.48,43.73737699]
[1644467878765,1.27216181,111.53,111.48,43.73737699]
[1644467879365,1.27216181,111.54,111.48,43.73737699]
[1644467879767,14.72866181,111.54,111.48,57.19457699]
[1644467881967,1.27216181,111.53,111.48,43.73737699]
[1644467882171,14.73056181,111.53,111.47,37.2478]
[1644467883071,14.73056181,111.53,111.47,76.40259841]
[1644467883571,14.73056181,111.53,111.47,37.2478]
[1644467883770,1.27216181,111.52,111.47,23.7894]
[1644467883970,13.4599,111.51,111.47,23.7894]